fUSD/lending_fUSD_20251023
["ID","MTS","AMOUNT","RATE_DAILY","PERIOD"]
[392218629,1761262236000,-182.30666,0.00036668,30]
[392218630,1761262236010,-182.30666,0.00036668,30]
[392218631,1761262236019,-182.30666,0.00036668,30]
[392218632,1761262236029,-182.30666,0.00036668,30]
[392218633,1761262236038,-182.30666,0.00036668,30]
[392218634,1761262236047,-182.30666,0.00036668,30]
[392218635,1761262236056,-182.306659,0.00036668,30]
[392218636,1761262236065,-151.0,0.00036668,30]
[392218637,1761262236074,-151.0,0.00036668,30]
[392218638,1761262236083,-151.0,0.00036668,30]
[392218639,1761262236093,-193.148465,0.00036668,30]
[392218640,1761262236102,-151.0,0.00036668,30]
[392218641,1761262236112,-318.156384,0.00036668,30]
[392218642,1761262236120,-318.156384,0.00036668,30]
[392218643,1761262236130,-318.156384,0.00036668,30]
[392218644,1761262236139,-318.156384,0.00036668,30]
[392218645,1761262236148,-318.156384,0.00036668,30]
[392218646,1761262236157,-318.156384,0.00036668,30]
[392218647,1761262236167,-318.156384,0.00036668,30]
[392218648,1761262236176,-318.156384,0.00036668,30]
[392218649,1761262236185,-318.156384,0.00036668,30]
[392218650,1761262236194,-318.156384,0.00036668,30]
[392218651,1761262236203,-318.156384,0.00036668,30]
[392218652,1761262236212,-318.156384,0.00036668,30]
[392218653,1761262236221,-318.156384,0.00036668,30]
[392218654,1761262236231,-318.156384,0.00036668,30]
[392218655,1761262236240,-318.156384,0.00036668,30]
[392218656,1761262236250,-318.156384,0.00036668,30]
[392218657,1761262236259,-318.156384,0.00036668,30]
[392218658,1761262236268,-318.156384,0.00036668,30]
[392218659,1761262236277,-318.156384,0.00036668,30]
[392218660,1761262236287,-318.156392,0.00036668,30]
[392218661,1761262236296,-152.92307,0.00036668,14]
[392218662,1761262236305,-151.0,0.00036668,30]
[392218663,1761262236314,-151.0,0.00036668,30]
[392218664,1761262236323,-206.013653,0.00036668,30]
[392218665,1761262236333,-37503.47027729,0.00036668,2]
[392218679,1761262238642,-170.86405,0.00036648,2]
[392218680,1761262238651,-151.0,0.00036668,30]
[392218681,1761262238661,-151.0,0.00036668,30]
[392218682,1761262238670,-151.0,0.00036668,30]
[392218683,1761262238679,-151.0,0.00036668,30]
[392218684,1761262238689,-151.0,0.00036668,30]
[392218685,1761262238698,-151.0,0.00036668,30]
[392218686,1761262238707,-151.0,0.00036668,30]
[392218687,1761262238717,-151.0,0.00036668,30]
[392218688,1761262238727,-11458.18283514,0.00036668,2]
[392218689,1761262238747,-2197.63810758,0.00036668,2]
[392218690,1761262238759,-478.26538456,0.00036668,2]
[392218691,1761262238771,-605.50656376,0.00036668,2]
[392218692,1761262238840,-873.8621171,0.00036668,2]
[392218693,1761262238903,-1104.68,0.00036668,2]
[392218694,1761262238945,-1930.63445,0.00036668,2]
[392218695,1761262238956,-272083.29259021,0.00036668,2]
[392218696,1761262238971,-10849.074,0.00036668,2]
[392218699,1761262240253,-544.93528001,0.00036105,2]
[392218701,1761262240262,-302.0589113,0.00036339,2]
[392218703,1761262240273,-242.87636871,0.00036339,2]
[392218705,1761262240283,-184.59263127,0.00036668,2]
[392218707,1761262240294,-550.8,0.00036668,2]
[392218723,1761262241632,-1.6e-07,0.00036668,2]
[392218724,1761262241648,-250948.07296126,0.00036668,2]
[392218725,1761262241657,-3289.12046447,0.00036668,2]
[392218726,1761262241666,-177.99853192,0.00036668,2]
[392218727,1761262241676,-157.18265273,0.00036668,2]
[392218728,1761262241686,-394296.65897819,0.00036668,2]
[392218729,1761262241872,-601632.63322799,0.00036668,2]
[392218730,1761262241882,-367.22819716,0.00036668,2]
[392218731,1761262241893,-7377.54452968,0.00036668,2]
[392218732,1761262241902,-550.0,0.00036668,2]
[392218733,1761262241911,-1023.65543439,0.00036668,2]
[392218734,1761262241920,-10859.0545998,0.00036668,2]
[392218735,1761262241929,-172367.49221258,0.00036668,2]
[392218736,1761262241938,-15143.40551851,0.00036668,2]
[392218737,1761262241947,-176.23755081,0.00036668,2]
[392218738,1761262241957,-232.22205986,0.00036668,2]
[392218739,1761262241967,-28467.55843195,0.00036668,2]
[392218740,1761262241976,-6000.0,0.00036668,2]
[392218741,1761262241986,-380.75217339,0.00036668,2]
[392218742,1761262241995,-1490.76216971,0.00036668,2]
[392218743,1761262242004,-1048.18831107,0.00036668,2]
[392218744,1761262242013,-475.30592427,0.00036668,7]
[392218745,1761262242023,-5087.79774644,0.00036668,2]
[392218746,1761262242032,-1193.89985148,0.00036668,2]
[392218747,1761262242041,-1703.27611165,0.00036668,2]
[392218748,1761262242051,-5283.05148332,0.00036668,14]
[392218749,1761262242061,-571.20440165,0.00036668,2]
[392218750,1761262242070,-150.0,0.00036668,2]
[392218751,1761262242079,-7876.9474135,0.00036668,2]
[392218752,1761262242088,-5272.74388719,0.00036668,14]
[392218753,1761262242098,-1395.29638882,0.00036668,2]
[392218754,1761262242107,-635.27068886,0.00036668,2]
[392218755,1761262242116,-223.09596825,0.00036668,5]
[392218756,1761262242125,-217.78475473,0.00036668,2]
[392218757,1761262242135,-166574.47031204,0.00036668,2]
[392218758,1761262242144,-1081.91315702,0.00036668,2]
[392218759,1761262242153,-2052.25816754,0.00036668,7]
[392218760,1761262242162,-2500.0,0.00036668,2]
[392218761,1761262242171,-587.34644258,0.00036668,2]
[392218762,1761262242183,-346.9753821,0.00036668,2]
[392218763,1761262242192,-1736.93807463,0.00036668,2]
[392218764,1761262242201,-1100.0,0.00036668,2]
[392218765,1761262242210,-925.16724693,0.00036668,2]
[392218766,1761262242219,-488.46024009,0.00036668,2]
[392218767,1761262242229,-15806.49367168,0.00036668,2]
[392218768,1761262242238,-1609.99815265,0.00036668,2]
[392218769,1761262242249,-57518.69685437,0.00036668,2]
[392218770,1761262242258,-1102.13748433,0.00036668,5]
[392218771,1761262242267,-556.14588636,0.00036668,2]
[392218772,1761262242276,-5077.06257085,0.00036668,2]
[392218773,1761262242285,-555.44163977,0.00036668,7]
[392218774,1761262242294,-1026.2365898,0.00036668,2]
[392218775,1761262242304,-370.03034082,0.00036668,2]
[392218776,1761262242313,-2234.94902227,0.00036668,2]
[392218777,1761262242323,-15006.9303585,0.00036668,2]
[392218778,1761262242332,-6513.55438625,0.00036668,2]
[392218779,1761262242341,-222.67651114,0.00036668,7]
[392218780,1761262242350,-4808.84002926,0.00036668,5]
[392218781,1761262242359,-253213.72848912,0.00036668,2]
[392218782,1761262242371,-396.42060508,0.00036668,2]
[392218783,1761262242380,-140.52939492,0.00036668,7]
[392218784,1761262242414,-209.70696324,0.00036668,7]
[392218785,1761262242423,-238.29598683,0.00036668,7]
[392218786,1761262242432,-489.35566178,0.00036668,2]
[392218787,1761262242441,-889.4890523,0.00036668,2]
[392218788,1761262242450,-467.5165889,0.00036668,2]
[392218789,1761262242459,-150.0,0.00036668,2]
[392218790,1761262242468,-160.0,0.00036668,2]
[392218791,1761262242477,-488.89927849,0.00036668,7]
[392218792,1761262242486,-502.80982282,0.00036668,7]
[392218793,1761262242496,-498.05532103,0.00036668,5]
[392218794,1761262242506,-5741.36685282,0.00036668,2]
[392218795,1761262242525,-4428.11797574,0.00036668,2]
[392218800,1761262243207,-178.95064141,0.00034669,2]
[392218801,1761262243216,-6512.7747873,0.00036668,2]
[392218802,1761262243225,-2744.10257813,0.00036668,2]
[392218803,1761262243235,-44545.02199314,0.00036668,2]
[392218804,1761262243362,-1012.85979988,0.00036668,2]
[392218805,1761262243381,-2443.78171448,0.00036668,2]
[392218807,1761262243393,-1338.89025357,0.00036668,2]
[392218808,1761262243456,-763.40468133,0.00036668,2]
[392218809,1761262243469,-546.14270001,0.00036668,2]
[392218810,1761262243480,-1130.40073013,0.00036668,2]
[392218811,1761262243491,-461.412428,0.00036668,2]
[392218818,1761262246050,-328.4567269,0.00036668,2]
[392218819,1761262246169,-6363.57417,0.00036668,2]
[392218820,1761262246318,-160648.43165823,0.00036668,2]
[392218821,1761262246327,-153.58167845,0.00036668,2]
[392218822,1761262246337,-1702.62553106,0.00036668,2]
[392218823,1761262246347,-996.0563521,0.00036668,5]
[392218824,1761262246356,-252.88495386,0.00036668,2]
[392218825,1761262246366,-169.56665046,0.00036668,2]
[392218826,1761262246376,-500.0,0.00036668,2]
[392218827,1761262246385,-1005.16488066,0.00036668,2]
[392218828,1761262246394,-1280.29657953,0.00036668,2]
[392218829,1761262246403,-247.23434087,0.00036668,2]
[392218830,1761262246413,-1057.22910308,0.00036668,2]
[392218831,1761262246423,-600.0,0.00036668,5]
[392218832,1761262246432,-553.46387173,0.00036668,2]
[392218833,1761262246442,-9373.06441431,0.00036668,2]
[392218834,1761262246451,-1331.28237837,0.00036668,2]
[392218835,1761262246461,-3471.71218445,0.00036668,2]
[392218836,1761262246471,-2228.9890443,0.00036668,2]
[392218837,1761262246480,-23152.26740038,0.00036668,2]
[392218838,1761262246489,-758.72753568,0.00036668,2]
[392218839,1761262246499,-13020.73658942,0.00036668,2]
[392218840,1761262246510,-1948.20346017,0.00036668,2]
[392218841,1761262246521,-186.79944941,0.00036668,2]
[392218842,1761262246530,-5094.03213178,0.00036668,2]
[392218843,1761262246540,-16429.14095838,0.00036668,2]
[392218844,1761262246551,-643.0,0.00036668,2]
[392218845,1761262246561,-985.03343042,0.00036668,2]
[392218846,1761262246570,-19356.0031314,0.00036668,5]
[392218847,1761262246579,-581.57454563,0.00036668,2]
[392218848,1761262246591,-1862.70012963,0.00036668,2]
[392218849,1761262246601,-92151.06389907,0.00036668,2]
[392218850,1761262246611,-4999.999999,0.00036668,2]
[392218851,1761262246620,-456.8451738,0.00036673,5]
[392218852,1761262246629,-500.0,0.00036673,5]
[392218853,1761262246639,-500.0,0.00036673,5]
[392218855,1761262246649,-562.5287038,0.00036673,5]
[392218856,1761262246659,-500.0,0.00036673,5]
[392218857,1761262246669,-163.94538617,0.00036673,5]
[392218858,1761262246680,-500.0,0.00036673,5]
[392218859,1761262246690,-501.72464827,0.00036673,5]
[392218860,1761262246700,-500.0,0.00036673,5]
[392218861,1761262246711,-472.07859674,0.00036673,5]
[392218862,1761262246723,-500.0,0.00036673,2]
[392218863,1761262246733,-172.56206533,0.00036673,5]
[392218864,1761262246743,-500.0,0.00036673,5]
[392218865,1761262246753,-500.73416328,0.00036673,5]
[392218866,1761262246763,-500.0,0.00036673,5]
[392218867,1761262246773,-150.0,0.00036681,2]
[392218868,1761262246783,-248.0,0.00036681,2]
[392218869,1761262246792,-12879.79381268,0.0003669,3]
[392218871,1761262262306,250.0,0.00017,2]
[392218872,1761262266711,500.0,0.00019999,2]
[392218873,1761262266779,500.0,0.00019999,2]
[392218874,1761262284146,339.73781046,0.00019999,2]
[392218875,1761262284427,481.69823832,0.00019999,2]
[392218876,1761262284456,278.99014252,0.00019999,2]
[392218877,1761262569509,-289.42077271,0.00024932,2]
[392218878,1761262609132,159.949763,0.00036635,120]
[392218879,1761262704497,-182.40920469,0.00024932,2]
[392218880,1761262746768,195.0,0.00025555,120]
[392218881,1761262765069,-28.1700226,0.00024932,2]
[392218882,1761262765096,-224.74328951,0.00026178,2]
[392218883,1761262809614,-25.25671049,0.00026178,2]
[392218884,1761262809636,-186.0,0.00027424,2]
[392218885,1761262809661,-70.43285684,0.00027424,2]
[392218886,1761262813211,-229.56714316,0.00027424,2]
[392218887,1761262813236,-5.05122936,0.00027424,2]
[392218888,1761262816019,-255.92385,0.00027424,2]
[392218889,1761262818179,-301.22351527,0.00027424,2]
[392218890,1761262821303,-314.08928869,0.00027424,2]
[392218891,1761262839551,-228.58407504,0.00027424,2]
[392218892,1761262841837,-95.12804164,0.00027424,2]
[392218893,1761262841865,-87.51960278,0.00027425,120]
[392218894,1761262845116,-212.48039722,0.00027425,120]
[392218895,1761262845142,-1.5458813,0.00027425,120]
[392218896,1761262846776,-199.83052958,0.00027425,120]
[392218897,1761262848278,-98.62358912,0.00027425,120]
[392218898,1761262848305,-241.86293695,0.00027425,120]
[392218899,1761262853291,-303.39546006,0.00027425,120]
[392218900,1761262869646,-191.57806558,0.00027425,120]
[392218901,1761262871233,-119.22395994,0.00027425,120]
[392218902,1761262871259,-157.57740705,0.00027425,120]
[392218903,1761262929509,-195.0,0.00027287,2]
[392218905,1761263135089,-211.10151709,0.00027424,2]
[392218912,1761263226088,-166.66666668,0.00027324,2]
[392218913,1761263226110,-988.89848291,0.00027424,2]
[392218914,1761263226135,-1200.0,0.00027424,2]
[392218915,1761263226158,-300.0,0.00027962,120]
[392218916,1761263226180,-166.66666666,0.00028009,2]
[392218917,1761263226200,-171.42,0.00028358,2]
[392218918,1761263226220,-166.66666666,0.00028693,2]
[392218919,1761263226240,-938.63725424,0.0002879,2]
[392218920,1761263226261,-743.0,0.00028792,2]
[392218921,1761263226282,-300.0,0.00028792,2]
[392218922,1761263226302,-320.10067817,0.00028793,2]
[392218923,1761263226322,-248.55899801,0.00028793,2]
[392218924,1761263226344,-500.0,0.00028793,2]
[392218925,1761263226366,-395.48746476,0.00028793,2]
[392218926,1761263226386,-308.77136125,0.00028793,2]
[392218927,1761263226406,-457.93196947,0.00028793,2]
[392218928,1761263233131,-42.06803053,0.00028793,2]
[392218929,1761263233153,-111.07958821,0.00028793,2]
[392218930,1761263233181,-350.51283825,0.00028793,2]
[392218931,1761263286138,-503.0523676,0.00028792,2]
[392218932,1761263286163,-260.35231373,0.00028792,2]
[392218933,1761263286209,-235.81397513,0.00028792,2]
[392218934,1761263286297,-103.40436517,0.00028792,2]
[392218935,1761263286325,-191.2528382,0.00028792,2]
[392218936,1761263349095,-242.73726162,0.00028791,2]
[392218937,1761263349125,-500.0,0.00028791,2]
[392218938,1761263349148,-286.96157638,0.00028791,2]
[392218939,1761263349182,-85.57528238,0.00028791,2]
[392218940,1761263349209,-500.0,0.00028791,2]
[392218941,1761263349233,-407.07847762,0.00028791,2]
[392218942,1761263359153,-92.92152238,0.00028791,2]
[392218943,1761263359176,-500.0,0.00028791,2]
[392218944,1761263359198,-500.0,0.00028791,2]
[392218945,1761263359220,-500.0,0.00028791,2]
[392218946,1761263359241,-500.0,0.00028791,2]
[392218947,1761263359262,-500.0,0.00028791,2]
[392218948,1761263359284,-500.0,0.00028791,2]
[392218949,1761263359304,-500.0,0.00028791,2]
[392218950,1761263359326,-500.0,0.00028791,2]
[392218951,1761263359347,-500.0,0.00028791,2]
[392218952,1761263359371,-169.39298562,0.00028791,2]
[392218953,1761263359413,-330.60701438,0.00028791,2]
[392218954,1761263359435,-123.59278202,0.00028791,2]
[392218955,1761263360086,-376.40721798,0.00028791,2]
[392218956,1761263360112,-500.0,0.00028791,2]
[392218957,1761263360138,-500.0,0.00028791,2]
[392218958,1761263360164,-500.0,0.00028791,2]
[392218959,1761263360189,-500.0,0.00028791,2]
[392218960,1761263360216,-500.0,0.00028791,2]
[392218961,1761263360246,-500.0,0.00028791,2]
[392218962,1761263360274,-500.0,0.00028791,2]
[392218963,1761263360298,-500.0,0.00028791,2]
[392218964,1761263360320,-500.0,0.00028791,2]
[392218965,1761263360343,-500.0,0.00028791,2]
[392218966,1761263360365,-500.0,0.00028791,2]
[392218967,1761263360387,-500.0,0.00028791,2]
[392218968,1761263360409,-500.0,0.00028791,2]
[392218969,1761263360432,-500.0,0.00028791,2]
[392218970,1761263360455,-500.0,0.00028791,2]
[392218971,1761263360478,-500.0,0.00028791,2]
[392218972,1761263360501,-500.0,0.00028791,2]
[392218973,1761263360525,-500.0,0.00028791,2]
[392218974,1761263360549,-500.0,0.00028791,2]
[392218975,1761263360572,-500.0,0.00028791,2]
[392218976,1761263360594,-500.0,0.00028791,2]
[392218977,1761263360617,-500.0,0.00028791,2]
[392218978,1761263360639,-500.0,0.00028791,2]
[392218979,1761263360662,-500.0,0.00028791,2]
[392218980,1761263360687,-500.0,0.00028791,2]
[392218981,1761263360711,-500.0,0.00028791,2]
[392218982,1761263360735,-500.0,0.00028791,2]
[392218983,1761263360761,-500.0,0.00028791,2]
[392218984,1761263360785,-500.0,0.00028791,2]
[392218985,1761263360812,-500.0,0.00028791,2]
[392218986,1761263360840,-500.0,0.00028791,2]
[392218987,1761263360864,-500.0,0.00028791,2]
[392218988,1761263360889,-500.0,0.00028791,2]
[392218989,1761263360915,-500.0,0.00028791,2]
[392218990,1761263360938,-500.0,0.00028791,2]
[392218991,1761263360961,-500.0,0.00028791,2]
[392218992,1761263360985,-500.0,0.00028791,2]
[392218993,1761263361008,-500.0,0.00028791,2]
[392218994,1761263361034,-500.0,0.00028791,2]
[392218995,1761263361057,-500.0,0.00028791,2]
[392218996,1761263361082,-500.0,0.00028791,2]
[392218997,1761263361109,-500.0,0.00028791,2]
[392218998,1761263361132,-500.0,0.00028791,2]
[392218999,1761263361156,-500.0,0.00028791,2]
[392219000,1761263361178,-500.0,0.00028791,2]
[392219001,1761263361201,-500.0,0.00028791,2]
[392219002,1761263361224,-500.0,0.00028791,2]
[392219003,1761263361246,-500.0,0.00028791,2]
[392219004,1761263361268,-500.0,0.00028791,2]
[392219005,1761263361290,-371.43550005,0.00028791,2]
[392219006,1761263361312,-500.0,0.00028791,2]
[392219007,1761263361334,-114.49056197,0.00028791,2]
[392219008,1761263372674,1000.0,0.00036636,120]
[392219009,1761263373616,1000.0,0.00036636,120]
[392219010,1761263374932,1000.0,0.00036636,120]
[392219011,1761263375186,1000.0,0.00036636,120]
[392219012,1761263376253,1000.0,0.00036636,120]
[392219013,1761263415375,431.38,0.00036636,120]
[392219014,1761263432063,-1200.0,0.0002879,2]
[392219015,1761263432072,-300.0,0.0002879,2]
[392219016,1761263432082,-300.0,0.0002879,2]
[392219017,1761263432091,-385.50943803,0.00028791,2]
[392219018,1761263432101,-34.49056197,0.00028791,2]
[392219019,1761263432112,-465.50943803,0.00028791,2]
[392219020,1761263432122,-500.0,0.00028791,2]
[392219021,1761263432132,-500.0,0.00028791,2]
[392219022,1761263432141,-500.0,0.00028791,2]
[392219023,1761263432151,-500.0,0.00028791,2]
[392219024,1761263432160,-649.99999999,0.00028791,2]
[392219025,1761263432169,-1200.0,0.00028792,2]
[392219026,1761263432179,-867.581,0.00029943,24]
[392219027,1761263432188,-300.0,0.00030056,120]
[392219028,1761263432197,-1000.0,0.00030165,2]
[392219029,1761263432207,-173.9912986,0.00030165,2]
[392219030,1761263432223,-555.0894833,0.00030165,2]
[392219031,1761263432232,-224.07047472,0.00030165,2]
[392219032,1761263432242,-199.37767214,0.00030165,2]
[392219033,1761263432251,-300.0,0.00030166,120]
[392219034,1761263432260,-195.0,0.00030166,120]
[392219035,1761263432270,-2500.0,0.00030166,120]
[392219036,1761263432279,-250.0,0.00030166,2]
[392219037,1761263432288,-4000.0,0.00030166,120]
[392219038,1761263432297,-420.0,0.00031068,2]
[392219039,1761263432306,-1280.0,0.0003107,3]
[392219040,1761263432315,-1095.0,0.00031202,3]
[392219041,1761263432324,-2526.39702852,0.0003167,120]
[392219042,1761263432334,-163.0,0.0003182,2]
[392219043,1761263432344,-2000.0,0.000329,2]
[392219044,1761263432353,-587.0,0.00033526,2]
[392219045,1761263432363,-555.53,0.00034208,2]
[392219046,1761263432372,-5000.0,0.00034497,2]
[392219047,1761263432381,-921.62,0.00034644,2]
[392219048,1761263432391,-150.0,0.00034653,2]
[392219049,1761263432400,-578.20924308,0.00034752,2]
[392219050,1761263432408,-151.0,0.00034752,2]
[392219051,1761263432418,-277.35679052,0.00034752,2]
[392219052,1761263432431,-208.6,0.00034938,2]
[392219053,1761263432440,-300.0,0.00035175,7]
[392219054,1761263432449,-200.0,0.00035243,2]
[392219055,1761263432459,-151.0,0.000353,2]
[392219056,1761263432468,-166.66,0.00035346,2]
[392219057,1761263432477,-500.0,0.00035434,2]
[392219058,1761263432486,-500.0,0.00035434,2]
[392219059,1761263432495,-500.0,0.00035434,2]
[392219060,1761263432504,-500.0,0.00035434,2]
[392219061,1761263432513,-500.0,0.00035434,2]
[392219062,1761263432523,-500.0,0.00035434,2]
[392219063,1761263432532,-500.0,0.00035434,2]
[392219064,1761263432542,-500.0,0.00035434,2]
[392219065,1761263432551,-500.0,0.00035434,2]
[392219066,1761263432560,-500.0,0.00035434,2]
[392219067,1761263432570,-500.0,0.00035434,2]
[392219068,1761263432579,-500.0,0.00035434,2]
[392219069,1761263432588,-500.0,0.00035434,2]
[392219070,1761263432598,-151.0,0.00035434,2]
[392219072,1761263432607,-500.0,0.00035434,2]
[392219074,1761263432616,-500.0,0.00035434,2]
[392219076,1761263432626,-500.0,0.00035434,2]
[392219078,1761263432635,-500.0,0.00035434,2]
[392219080,1761263432644,-500.0,0.00035434,2]
[392219082,1761263432653,-500.0,0.00035434,2]
[392219083,1761263432662,-500.0,0.00035434,2]
[392219084,1761263432671,-500.0,0.00035434,2]
[392219085,1761263432681,-500.0,0.00035434,2]
[392219086,1761263432690,-721.12765535,0.00035434,2]
[392219087,1761263432699,-500.0,0.00035434,2]
[392219088,1761263432709,-500.0,0.00035434,2]
[392219089,1761263432718,-500.0,0.00035434,2]
[392219090,1761263432727,-500.0,0.00035434,2]
[392219091,1761263432735,-500.0,0.00035434,2]
[392219092,1761263432745,-515.01446521,0.00035434,2]
[392219093,1761263432754,-500.0,0.00035434,2]
[392219094,1761263432763,-500.0,0.00035434,2]
[392219095,1761263432772,-322.6107,0.00035434,2]
[392219096,1761263432781,-500.0,0.00035434,2]
[392219097,1761263432791,-500.0,0.00035434,2]
[392219098,1761263432799,-500.0,0.00035434,2]
[392219099,1761263432808,-500.0,0.00035434,2]
[392219100,1761263432818,-500.0,0.00035434,2]
[392219101,1761263432827,-500.0,0.00035434,2]
[392219102,1761263432837,-200.0,0.00035434,2]
[392219103,1761263432846,-175.02,0.00035451,14]
[392219104,1761263432856,-6399.74433521,0.00035654,2]
[392219105,1761263432865,-200.61576732,0.00035655,2]
[392219107,1761263432874,-175.02,0.00035725,14]
[392219108,1761263432883,-151.0,0.00035848,2]
[392219110,1761263432892,-175.04,0.00035999,14]
[392219112,1761263432901,-168.0,0.00036049,2]
[392219114,1761263432910,-905.57,0.00036097,2]
[392219116,1761263432920,-287.61899177,0.00036121,2]
[392219118,1761263432929,-823.0,0.00036179,2]
[392219120,1761263432938,-5066.7,0.00036261,2]
[392219122,1761263432947,-9999.99,0.00036261,2]
[392219124,1761263432957,-3815.96,0.00036261,2]
[392219125,1761263432966,-150.99,0.00036261,2]
[392219126,1761263432975,-999.99,0.00036261,2]
[392219127,1761263432984,-5786.18,0.00036261,2]
[392219128,1761263432993,-8946.07,0.00036261,2]
[392219129,1761263433003,-1201.69000429,0.00036261,2]
[392219130,1761263433012,-11812.39124244,0.00036292,2]
[392219131,1761263433022,-200.0,0.00036363,10]
[392219132,1761263433031,-200.0,0.00036371,10]
[392219133,1761263433041,-200.0,0.00036379,10]
[392219135,1761263433053,-200.0,0.00036387,10]
[392219137,1761263433063,-465.0331,0.000364,2]
[392219138,1761263433072,-466.5348,0.00036448,120]
[392219140,1761263433082,-275.8791,0.00036448,2]
[392219154,1761263433371,-1000.0,0.00036468,2]
[392219155,1761263433387,-984.2533,0.00036468,2]
[392219156,1761263433399,-168.0,0.00036485,2]
[392219157,1761263433409,-168.0,0.00036511,2]
[392219158,1761263433419,-166.66,0.00036513,2]
[392219159,1761263433429,-346.42,0.00036537,7]
[392219160,1761263433438,-500.0,0.00036537,120]
[392219161,1761263433448,-500.0,0.00036537,120]
[392219162,1761263433458,-500.0,0.00036547,2]
[392219163,1761263433467,-500.0,0.00036547,120]
[392219164,1761263433477,-500.0,0.00036547,30]
[392219165,1761263433486,-476.23156132,0.00036568,2]
[392219166,1761263433496,-4390.71475334,0.00036581,2]
[392219167,1761263433506,-1147.0,0.000366,2]
[392219168,1761263433515,-164.0,0.000366,30]
[392219169,1761263433526,-500.0,0.00036667,30]
[392219170,1761263433542,-11091.33359999,0.00036669,2]
[392219171,1761263433555,-15909.54730641,0.00036669,2]
[392219172,1761263433564,-250.0,0.00036681,2]
[392219173,1761263433574,-150.0,0.00036681,2]
[392219174,1761263433584,-150.0,0.00036681,2]
[392219175,1761263433593,-150.0,0.00036681,2]
[392219176,1761263433603,-150.0,0.00036681,2]
[392219177,1761263433613,-150.0,0.00036681,2]
[392219178,1761263433623,-150.0,0.00036681,2]
[392219179,1761263433632,-170.86406,0.00036681,2]
[392219180,1761263433642,-150.0,0.00036685,7]
[392219181,1761263433652,-200.0,0.0003669,2]
[392219182,1761263433661,-1364.51,0.000367,30]
[392219183,1761263433670,-150.0,0.00036736,2]
[392219184,1761263433680,-150.0,0.00036736,2]
[392219185,1761263433690,-150.0,0.00036736,2]
[392219186,1761263433699,-200.0,0.00036736,2]
[392219187,1761263433708,-168.0,0.00036752,2]
[392219188,1761263433718,-200.0,0.00036791,2]
[392219189,1761263433727,-150.0,0.00036791,2]
[392219190,1761263433736,-334.5472959,0.00036803,2]
[392219191,1761263433746,-351.0,0.00036845,7]
[392219192,1761263433755,-250.0,0.00036845,2]
[392219193,1761263433765,-150.41,0.0003687,2]
[392219194,1761263433775,-208.6,0.00036879,2]
[392219195,1761263433784,-248.0,0.00036993,7]
[392219196,1761263433795,-200.0,0.00037057,2]
[392219197,1761263433804,-248.0,0.00037076,2]
[392219198,1761263433814,-351.0,0.0003711,2]
[392219199,1761263433823,-248.0,0.00037162,120]
[392219200,1761263433833,-166.66,0.00037196,30]
[392219201,1761263433842,-168.0,0.00037218,2]
[392219202,1761263433853,-248.0,0.00037222,7]
[392219203,1761263433862,-80101.94254437,0.00037327,2]
[392219204,1761263433872,-248.0,0.00037337,2]
[392219205,1761263433882,-168.0,0.00037352,2]
[392219206,1761263433891,-4390.71475332,0.00037376,2]
[392219207,1761263433900,-248.0,0.00037393,2]
[392219208,1761263433910,-351.0,0.00037398,2]
[392219209,1761263433920,-351.0,0.00037478,2]
[392219210,1761263433929,-298.26089446,0.0003749,2]
[392219211,1761263433939,-166.66,0.0003768,2]
[392219212,1761263433949,-500.0,0.0003777,15]
[392219213,1761263433958,-168.0,0.00037843,2]